Cogmind - Beta 14 @@@ ROGUE MODE // 2024.11.17 @ 18:02:31 Player: Daffa0360 Result: Self-destructed Performance ------------- Evolutions (2) 1000 Regions Visited (3) 600 Robots Destroyed (19) 95 Value Destroyed (566) 566 Prototype IDs (1) 20 Alien Tech Used (0) 0 Bonus (0) 0 TOTAL SCORE: 2281 Bonus ------- None Cogmind --------- Core Integrity 541/550 Matter 300/300 Energy 160/160 System Corruption 0% Temperature Cool (0) Movement Rolling (125) Ox3 Location -8/Materials Parts ------- > --- POWER (1) -------- Light Nuclear Core > --- PROPULSION (2) --- Medium Treads Wheel > --- UTILITY (6) ------ Small Storage Unit Advanced Visual Processing Unit Seismic Detector Hardened Heavy Armor Plating System Shield > --- WEAPON (2) ------- Heavy EM Pulse Gun Shock Bomb Launcher > --- INVENTORY (8) ---- Improved Ion Engine Medium Treads Medium Treads Terrain Scan Processor Improved EM Shotgun Rocket Launcher Mining Laser Peak State ------------ > --- POWER ------------ Light Nuclear Core > --- PROPULSION ------- Medium Treads Wheel > --- UTILITY ---------- Small Storage Unit Advanced Visual Processing Unit Seismic Detector Hardened Heavy Armor Plating System Shield > --- WEAPON ----------- Heavy EM Pulse Gun Improved EM Shotgun > --- INVENTORY -------- Improved Ion Engine Medium Treads Medium Treads Terrain Scan Processor Shock Bomb Launcher Rocket Launcher Mining Laser [Rating: 30] Favorites ----------- Power Light Nuclear Core Engine Ion Engine Power Core Light Nuclear Core Propulsion Wheel Treads Medium Treads Leg Aluminum Leg Wheel Wheel Utility Small Storage Unit Device Seismic Detector Storage Small Storage Unit Processor Advanced Visual Processing Unit Hackware System Shield Protection Light Armor Plating Weapon Assault Rifle Energy Gun Improved EM Shotgun Ballistic Gun Assault Rifle Launcher Rocket Launcher Build | -11 -10 -9 -8 ------- Run | Yrd Mat Mat Mat Slots Evolved 4 | . . 2 2 Power . | . . . . Propulsion . | . . . . Utility 4 | . . 2 2 Weapon . | . . . . Parts Attached 22 | . 4 10 8 Power 4 | . . 3 1 Engine 3 | . . 3 . Core 1 | . . . 1 Reactor . | . . . . Propulsion 5 | . 2 2 1 Treads 2 | . . 1 1 Leg . | . . . . Wheel 3 | . 2 1 . Hover . | . . . . Flight . | . . . . Utility 8 | . 2 3 3 Device 2 | . 2 . . Storage 1 | . . 1 . Processor 1 | . . . 1 Hackware 1 | . . . 1 Protection 3 | . . 2 1 Artifact . | . . . . Weapon 5 | . . 2 3 Energy Gun 3 | . . 2 1 Energy Cannon . | . . . . Ballistic Gun . | . . . . Ballistic Cannon . | . . . . Launcher 2 | . . . 2 Special Weapon . | . . . . Impact Weapon . | . . . . Slashing Weapon . | . . . . Piercing Weapon . | . . . . Special Melee Weapon . | . . . . Unidentified Prototypes 1 | . . 1 . Parts Lost 3 | . . 3 . Power 1 | . . 1 . Propulsion 1 | . . 1 . Utility . | . . . . Weapon 1 | . . 1 . Highest Loss Streak 3 | . . 3 . To Critical Strikes . | . . . . Average Slot Usage (%) 85 | . 95 85 79 Engine 7 | . 14 10 . Core 3 | . . . 8 Treads 4 | . . 2 9 Leg 4 | . 24 . . Wheel 12 | . 4 18 9 Device 10 | . 10 11 9 Storage 10 | . 14 11 9 Processor 2 | . . . 6 Protection 7 | . . 10 9 Energy Gun 5 | . . 3 9 Ballistic Gun 14 | . 28 17 5 Launcher 1 | . . . 3 Peak Build Rating 30 | 6 7 12 30 Average Rating 14 | 6 6 9 25 On Entrance 7 | 6 6 7 12 Naked Turns . | . . . . Heaviest Build 40 | 13 14 19 40 Greatest Support 28 | 20 26 26 28 Greatest Overweight (x) 3 | . . 1 3 Average Overweight (x) . | . . . 1 Largest Inventory Capacity 8 | 8 8 8 8 Average Capacity 8 | 8 8 8 8 Most Carried 8 | 8 8 8 8 Average Carried 7 | 6 7 7 7 Final Capacity 8 | 8 8 8 8 Final Carried 8 | 8 7 8 7 Class Distribution -------------------- 100% | Mutant Dominant Class ---------------- Mutant | -10/Materials Mutant | -9/Materials Mutant | -8/Materials Resources | -11 -10 -9 -8 ----------- Run | Yrd Mat Mat Mat Matter Collected 560 | 220 . 239 101 Remotely . | . . . . Salvage Created 634 | 70 . 347 217 Parts 57 | 5 . 30 22 Haulers Intercepted . | . . . . Recyclers Shooed 1 | . 1 . . Parts Field Recycled . | . . . . Retrieved Matter . | . . . . Parts Self-Destructed . | . . . . Prevented . | . . . . Kills | -11 -10 -9 -8 ------- Run | Yrd Mat Mat Mat Combat Hostiles Destroyed 13 | . . 7 6 Guns 9 | . . 7 2 AOE 4 | . . . 4 Classes Destroyed 8 | 2 . 5 1 Builder 3 | . . 2 1 Tunneler 1 | 1 . . . Recycler 1 | 1 . . . Watcher 1 | . . 1 . Swarmer 5 | . . 2 3 Grunt 2 | . . 2 . Sentry 4 | . . 3 1 Specialist 2 | . . . 2 Best Kill Streak 4 | 1 . 3 4 Combat Bots Only 3 | . . 3 3 Max Kills in Single Turn 4 | 1 . 1 4 Gunslinging . | . . . . Exploded 3 | . . . 3 Melee . | . . . . Uniques/NPCs Destroyed . | . . . . Combat | -11 -10 -9 -8 -------- Run | Yrd Mat Mat Mat Hostile Shots Fired 90 | . . 57 33 Missed 33 | . . 20 13 Damage Taken 767 | . . 505 262 Core 83 | . . 74 9 Absorbed by Shields . | . . . . Core Remaining (%) 93 | 100 100 81 . Volleys Fired 46 | 5 2 32 7 Largest 2 | 2 2 2 2 Hottest 90 | 40 40 76 90 Shots Fired 87 | 10 4 61 12 Gun 85 | 10 4 61 10 Cannon . | . . . . Launcher 2 | . . . 2 Special . | . . . . Kinetic 61 | 10 4 47 . Thermal 11 | . . 11 . Explosive 1 | . . . 1 Electromagnetic 14 | . . 3 11 Robot Hit Streak 11 | 4 5 11 5 Robot Miss Streak 3 | 2 1 3 1 Penetration Max . | . . . . Secondary Targets . | . . . . Shots Hit Robots 64 | 6 3 46 9 Core Hits 31 | 3 . 18 10 Critical Kills 1 | 1 . . . Critical Parts Destroyed . | . . . . Critical Strikes 1 | 1 . . . Destroy 1 | 1 . . . Melee Attacks . | . . . . Impact . | . . . . Slashing . | . . . . Piercing . | . . . . Sneak Attacks . | . . . . Combat Hostiles . | . . . . Follow-up Attacks . | . . . . Damage Inflicted 950 | 69 33 542 306 Guns 755 | 69 33 542 111 Cannons . | . . . . Explosions 195 | . . . 195 Melee . | . . . . Ramming . | . . . . Kinetic 512 | 69 33 410 . Thermal 100 | . . 100 . Explosive 174 | . . . 174 Electromagnetic 164 | . . 32 132 Impact . | . . . . Slashing . | . . . . Piercing . | . . . . Highest Corruption . | . . . . Average Corruption . | . . . . Corruption Purged . | . . . . Corruption Blocked . | . . . . Overload Shots . | . . . . Overflow Damage . | . . . . Projectiles . | . . . . Explosions . | . . . . Melee . | . . . . Knockbacks . | . . . . Impact . | . . . . Kinetic . | . . . . Secondary . | . . . . Self-Inflicted Damage 23 | . . . 23 Shots 1 | . . . 1 Rammed . | . . . . Targets Rammed . | . . . . Kicked . | . . . . Crushed . | . . . . Highest Temperature 204 | . . 204 201 Average Temperature 90 | . . 83 102 Received Heat Transfer 222 | . . 213 9 Siege Activations . | . . . . Robots Corrupted . | . . . . Combat Hostiles . | . . . . Parts Fried . | . . . . Impact Corruptions . | . . . . Robots Melted . | . . . . Combat Hostiles . | . . . . Parts Melted . | . . . . Heat Transferred 259 | . . 259 . Parts Sabotaged . | . . . . Parts Stolen . | . . . . Parts Stripped . | . . . . Power Chain Reactions . | . . . . Alert | -11 -10 -9 -8 ------- Run | Yrd Mat Mat Mat Peak Influence 245 | 10 74 225 245 Initial 42 | . 6 31 42 Average 74 | 5 45 97 71 Maximum Alert Level 1 | . . 1 1 Low Security (%) 95 | 100 100 93 94 Level 1 4 | . . 6 5 Level 2 . | . . . . Level 3 . | . . . . Level 4 . | . . . . Level 5 . | . . . . High Security . | . . . . Max Security . | . . . . Squads Dispatched 4 | . 1 . 3 Investigation . | . . . . Extermination . | . . . . Reinforcement 2 | . 1 . 1 Assault 1 | . . . 1 Garrison 1 | . . . 1 Intercept . | . . . . Searches Triggered . | . . . . Construction Impeded . | . . . . Haulers Reinforced . | . . . . Active Scanning Responses . | . . . . Cargo Convoy Interrupts . | . . . . Stealth | -11 -10 -9 -8 --------- Run | Yrd Mat Mat Mat Distress Signals 4 | . 1 3 . Communications Jammed . | . . . . Distress Signals . | . . . . Times Spotted 26 | . 2 16 8 Peak Tracking Total 6 | . 6 5 3 Tactical Retreats 4 | . 2 2 . Traps | -11 -10 -9 -8 ------- Run | Yrd Mat Mat Mat Traps Triggered . | . . . . Indirectly . | . . . . Trap Hack Attempts . | . . . . Triggered . | . . . . Disarmed . | . . . . Reprogrammed . | . . . . Reused . | . . . . Traps Extracted . | . . . . Installed . | . . . . Triggered . | . . . . Machines | -11 -10 -9 -8 ---------- Run | Yrd Mat Mat Mat Machines Disabled 2 | . . . 2 Max in Single Turn 1 | . . . 1 Garrison Access 1 | . . . 1 Machines Repaired . | . . . . Machines Dismantled . | . . . . Machines Sabotaged . | . . . . Overloaded Fab Kills . | . . . . Hacking | -11 -10 -9 -8 --------- Run | Yrd Mat Mat Mat Machines Accessed 8 | . 2 2 4 Terminals 6 | . 2 2 2 Fabricators . | . . . . Repair Stations . | . . . . Recycling Units . | . . . . Scanalyzers 1 | . . . 1 Garrison Access 1 | . . . 1 Total Hacks 28 | . 6 9 13 Successful 16 | . 3 5 8 Failed 12 | . 3 4 5 Catastrophic 1 | . . . 1 Database Lockouts . | . . . . Manual 13 | . 4 5 4 Terminals 21 | . 6 9 6 Fabricators . | . . . . Repair Stations . | . . . . Recycling Units . | . . . . Scanalyzers 3 | . . . 3 Garrison Access 4 | . . . 4 Terminal Hacks 7 | . 2 3 2 Emergency Access Points 1 | . . 1 . Alert Level 2 | . . 1 1 Unreport Threat 1 | . . 1 . Locate Traps 2 | . 2 . . Zone Layout 1 | . . . 1 Fabricator Hacks . | . . . . Repair Station Hacks . | . . . . Recycling Unit Hacks . | . . . . Scanalyzer 3 | . . . 3 Insert Component 1 | . . . 1 Analyze 2 | . . . 2 Garrison Access Hacks . | . . . . Unauthorized Hacks 6 | . 1 2 3 Terminals 6 | . 1 2 3 Botnet 5 | . 1 2 2 Operators 1 | . . . 1 Fabricators . | . . . . Repair Stations . | . . . . Recycling Units . | . . . . Scanalyzers . | . . . . Garrison Access . | . . . . Data Cores Recovered . | . . . . Used . | . . . . Hacking Detections 6 | . 2 1 3 Full Trace Events 1 | . . . 1 Feedback Events . | . . . . Feedback Blocked . | . . . . Robot Schematics Acquired . | . . . . Robots Built . | . . . . Authchips . | . . . . Time . | . . . . Total Robot Build Rating . | . . . . Part Schematics Acquired 1 | . . . 1 Parts Built . | . . . . Authchips . | . . . . Time . | . . . . Total Part Build Rating . | . . . . Parts Repaired . | . . . . Time . | . . . . Parts Recycled . | . . . . Recycled Matter . | . . . . Retrieved Matter . | . . . . Retrieved Components . | . . . . Parts Scanalyzed 1 | . . . 1 Part Schematics Acquired 1 | . . . 1 Parts Damaged . | . . . . Bothacking | -11 -10 -9 -8 ------------ Run | Yrd Mat Mat Mat Used RIF Installer . | . . . . Robots Hacked . | . . . . Non-combat . | . . . . Combat . | . . . . Robot Hacks Applied . | . . . . Relay Couplers Released 2 | . . . 2 Machine Destruction 2 | . . . 2 Fabnet Peak Effective % . | . . . . Robots Rewired . | . . . . Allies Hacked . | . . . . Hacks Repelled . | . . . . Allies | -11 -10 -9 -8 -------- Run | Yrd Mat Mat Mat Total Allies . | . . . . Largest Group . | . . . . Highest-Rated Group . | . . . . Highest-Rated Ally . | . . . . Total Orders . | . . . . Ally Attacks . | . . . . Total Damage . | . . . . Kills . | . . . . Allies Corrupted . | . . . . Allies Melted . | . . . . Intel | -11 -10 -9 -8 ------- Run | Yrd Mat Mat Mat Robot Analysis Total . | . . . . Derelict Logs Recovered . | . . . . Drone Launches . | . . . . Drone Recoveries . | . . . . Exploration | -11 -10 -9 -8 ------------- Run | Yrd Mat Mat Mat Turns Passed 1272 | 63 212 514 483 Spaces Moved 797 | 40 172 370 215 Core . | . . . . Treads 185 | . . 12 173 Legs 187 | 40 147 . . Wheels 425 | . 25 358 42 Hover . | . . . . Flight . | . . . . Fastest Speed 90 | 120 90 90 125 Average Speed 130 | 120 115 94 206 Slowest Speed 240 | 120 120 160 240 Overloaded Moves . | . . . . Propulsion Burnouts . | . . . . Robots Hopped . | . . . . Cave-ins Triggered . | . . . . Exploration Rate (%) 23 | 4 33 43 15 Regions Visited 3 Branch Regions . Pre-discovered Areas . | . . . . Known Exits Taken . | . . . . Unknown Exits Taken 3 | 1 1 1 . Scrap Searched . | . . . . Spaces Dug . | . . . . Terrain Destroyed 9 | . . . 9 Melee . | . . . . Projectile . | . . . . AOE 9 | . . . 9 Terrain Rammed . | . . . . Walls Destroyed . | . . . . Machines Disabled . | . . . . Actions | -11 -10 -9 -8 --------- Run | Yrd Mat Mat Mat Total 955 | 46 182 482 245 Wait 54 | . . 50 4 Move 794 | 39 171 369 215 Hop . | . . . . Pick Up 18 | 2 2 10 4 Fast Attach 6 | . . 4 2 Attach 6 | . 3 2 1 Detach . | . . . . Swap 10 | . 1 4 5 Drop 21 | . 3 11 7 Fire 46 | 5 2 32 7 Melee . | . . . . Ram . | . . . . Kick . | . . . . Crush . | . . . . Escape Stasis . | . . . . Rewire . | . . . . Trap . | . . . . Miscellaneous . | . . . . Route ------- -11/Scrapyard -10/Materials -9/Materials (discovered 2 exits: *Mat / [*Min]) -8/Materials History --------- Turn | Location | Event 1 | -11/Scrapyard | Discovered new exit (range 3) 64 | -11/Scrapyard | Entered Materials 272 | -10/Materials | Discovered new exit (range 3) 276 | -10/Materials | Entered another Materials area 276 | -9/Materials | Evolved 2 slots: Utility x2 305 | -9/Materials | Build established: Mutant 361 | -9/Materials | Discovered new exit (range 10) 674 | -9/Materials | Lost 3 parts (1p1n1w) 763 | -9/Materials | Discovered new exit (range 10) 790 | -9/Materials | Entered another Materials area 790 | -8/Materials | Evolved 2 slots: Utility x2 1273 | -8/Materials | Self-destructed Last Messages --------------- dispatching Specialist reinforcements to area. 01221_ Critical hit (Destroy). 01221_ X-57 Shotgunner destroyed. 01222_ Y-45 Defender emerges from the garrison. 01227_ K-01 Serf collects debris. 01230_ Y-45 Defender destroyed. 01231_ K-01 Serf collects debris. 01233_ Acquired 62 matter. 01239_ Connecting with Garrison Access... 01245_ ALERT: Garrison Access compromised, dispatching assault squad. 01245_ Garrison Access disabled. 01245_ Relay Coupler [NC] tumbles out of Garrison Access. 01245_ X-57 Shotgunner destroyed. 01249_ Neutrino Reactor explodes. 01253_ R-06 Scavenger collects Hrd. Medium Armor Plating. 01253_ Acquired 35 matter. 01256_ R-06 Scavenger collects Nuclear Core. Map ----- +----------------------------------------------------+ | ?????????????????????????????????????????????????? | | ?????????????????????????????????????????????????? | | ?????????????????????????????????????????????????? | | ?????????????????????????????????????????????????? | | ?????????????????????????????????????????????????? | | ?????????????????????????????????????????????????? | | ?????????????????????????????????????????????????? | | ?????????????????????????????????????????????????? | | ?????????????????????????????????????????????????? | | ?????????????????????????????????????????????????? | | ?????????????????????????????????????????????????? | | ?????????????????????????????????????????????????? | | ??????????????????? H????????????????????????????? | | ??????????????????? ????????????????????????????? | | ??????????????????? ????????????????????????????? | | ??????????????????? #######?????????????????????? | | ??????????????????# # #?????????????????????? | | ??????????????????# # #?????????????????????? | | ??????????????????# # #?????????????????????? | | ??????????????????# # ## """ """ # #???? | | ??????????????????# # ## """ """ # #???? | | ??????????????????# # ## """ """ ########???? | | ??????????????????# #!%[ ## #??????????? | | ??????????????????# #==[ ############??????????? | | ??????????????????# #[== !#?????????????????????? | | ??????????????????# #= @ #?????????????????????? | | ?????????????????## # """!#?????????????????????? | | ?????????????????## %# %u #????????????########## | | ????????????????? # %##+################# !# | | ??????????????????#%% + # | | ??????????????##### ##### ] # | | ??????????????#!! ############## ##### # | | ??????#########!! # #?????# ! # !!! # | | ??????# ## = # """ #?????# # !! # | | ??????# """ ## # """ #?????# T + !! # | | ####### """ ##! # """ #?????# # =# | | #!!!!## """ ##!! + #?????# # # | | ! !#[ ###### # #?????## ########### | | # #???## ###+########### # #??# | | ### ####+####### ## #??# ! # # """ #??# | | ??# ## #### + + """ #??# | | ??# T + # # """ #??# | | ??###+####+####### ####### "" # # #??? | | ???? ? ?#####+#####???# S"" # # #??? | | ???? # # = #???# "" ############??? | | ???"" # # = != #???########?????????????? | | ???"" # # == #????????????????????????? | | ??""" # # #????????????????????????? | | ??"" # # """ """ #????????????????????????? | | ? ######## """ """ #????????????????????????? | +----------------------------------------------------+ Best States ------------- Heat Dissipation 31 Energy Generation 14 Energy Capacity 250 Matter Stores 300 Matter Capacity 300 Sight Range 20 Terrain Scan Density 10 Armor Coverage 600 Evasion (%) 55 Recoil Reduction 1 Defensive Hacking 10 Item Schematics ----------------- Hvy. EM Pulse Gun | -8/Materials | Scanalyzed Robot Schematics ------------------ None Fabricated ------------ Nothing Alien Tech Used ----------------- None Achievements -------------- None Challenges ------------ None Game ------ Seed MyomerFissionLattice Manual? 0 Play Time 00:15:13 Cumulative 111.8 hours Start 2024.10.26 @ 13:32:28 End 2024.11.17 @ 18:02:31 Sessions 3 Manual Loads 0 Difficulty Rogue Special Mode None Game No. 177 Rogue 173 Adventurer 4 Explorer 0 Win Type - Total 0 Types 0/0/0/0/0/0/0/0/0 Lore% 51 Gallery% 58 Achievement% 42 Wizard Run 0 Options --------- Layout 2 ASCII 0 Keyboard 0 Movement Mouse Keybinds 0 Fullscreen 2 Font 24/Smallcaps Map View 50x44 Zoom Use 0% Tactical HUD 1 Map Filters NONE Filters NONE Steam 1 RUN: 7a756210-f065-4a94-90f9-b1c1d03fd7b1